fUSD/lending_fUSD_20250310
["ID","MTS","AMOUNT","RATE_DAILY","PERIOD"]
[355829384,1741630238790,-257.26787767,9.125e-05,2]
[355829512,1741630240284,-349.29911613,9.125e-05,2]
[355829514,1741630240296,-1794.68340669,9.125e-05,2]
[355829518,1741630240321,-2104.79837284,9.125e-05,2]
[355829525,1741630240406,-7896.92660843,9.125e-05,2]
[355829526,1741630240419,-54886.3100191,9.125e-05,2]
[355829527,1741630240462,-179300.89175509,9.125e-05,2]
[355829528,1741630240473,-509.7188,9.125e-05,2]
[355829529,1741630240483,-10952.5113,9.125e-05,2]
[355829530,1741630240494,-1767.9585,9.125e-05,2]
[355829531,1741630240504,-9963.6608,9.125e-05,2]
[355829532,1741630240514,-72276.4251,9.125e-05,2]
[355829533,1741630240523,-5865.6475,9.125e-05,2]
[355829534,1741630240538,-1000.0,9.187e-05,2]
[355829535,1741630240552,-1826.56600278,9.224e-05,2]
[355829536,1741630240562,-1357.98,9.225e-05,2]
[355829538,1741630240572,-1309.0,9.225e-05,2]
[355829540,1741630240582,-208300.31828406,9.225e-05,2]
[355829542,1741630240592,-2687826.16801619,9.225e-05,2]
[355829544,1741630240605,-338.3154,9.225e-05,2]
[355829546,1741630240621,-304.03316476,9.225e-05,2]
[355829549,1741630240633,-947.8052672,9.225e-05,2]
[355829551,1741630240644,-23580.0,9.225e-05,2]
[355829558,1741630240732,-1592.12143404,9.225e-05,2]
[355829559,1741630240743,-1568.2,9.225e-05,2]
[355829560,1741630240794,-39249.99999999,9.225e-05,2]
[355829620,1741630243649,-1109.74005422,9.225e-05,2]
[355829621,1741630243666,-44350.05191938,9.225e-05,2]
[355829622,1741630243714,-784.65,9.225e-05,2]
[355829631,1741630245184,-616528.83757124,9.225e-05,2]
[355829632,1741630245259,-0.31922847,9.225e-05,2]
[355829633,1741630245315,-150893.273448,9.225e-05,2]
[355829634,1741630245327,-4180.65874167,9.225e-05,2]
[355829635,1741630245363,-694.16999999,9.225e-05,2]
[355829638,1741630246645,-1031.47658998,9.225e-05,2]
[355829639,1741630246659,-2244.6515408,9.225e-05,2]
[355829640,1741630246725,-5683.7881209,9.225e-05,2]
[355829641,1741630246750,-669.385,9.225e-05,2]
[355829646,1741630246872,-152.07841202,9.225e-05,2]
[355829647,1741630246884,-4667.49580378,9.225e-05,2]
[355829648,1741630246896,-83879.34437139,9.225e-05,2]
[355829649,1741630246908,-2212.500005,9.225e-05,2]
[355829651,1741630247388,-271754.45895122,9.225e-05,2]
[355829652,1741630247403,-331727.92912985,9.225e-05,2]
[355829653,1741630247428,-3951.95009293,9.225e-05,2]
[355829654,1741630247456,-49999.8230625,9.225e-05,2]
[355829655,1741630247468,-890.07,9.225e-05,2]
[355829656,1741630250833,700.0,8.3e-05,3]
[355829657,1741630253330,1400.0,8.4e-05,3]
[355829658,1741630255046,2200.0,8.5e-05,3]
[355829659,1741630257151,2900.0,8.6e-05,3]
[355829660,1741630259255,3600.0,8.7e-05,3]
[355829661,1741630261378,700.0,8.8e-05,3]
[355829662,1741630267655,158.0,8.6e-05,3]
[355829664,1741630357937,250.0,8.439e-05,2]
[355829666,1741630446945,158.0,8.439e-05,3]
[355829667,1741630505362,154.0,8.439e-05,3]
[355829668,1741630506940,159.0,8.439e-05,3]
[355829669,1741630568673,159.0,8.439e-05,3]
[355829670,1741630626079,159.0,8.439e-05,3]
[355829671,1741630707409,158.25,8.219e-05,2]
[355829672,1741630715726,200.0,8.191e-05,2]
[355829673,1741630723060,-150.0,9.562e-05,7]
[355829674,1741630807531,154.0,8.439e-05,3]
[355829675,1741630835414,275.03,8.203e-05,2]
[355829680,1741630856629,334.21,8.23e-05,2]
[355829681,1741630932016,2000.0,8.202e-05,2]
[355829682,1741631053057,2098.21,8.219e-05,2]
[355829683,1741631106543,154.0,8.439e-05,3]
[355829684,1741631130727,1000.0,8.229e-05,2]
[355829685,1741631206633,170000.0,0.00019,120]
[355829700,1741631351942,809.85,8.219e-05,2]
[355829711,1741631394378,23623.82,8.249e-05,2]
[355829712,1741631402348,-156.94,8.838e-05,2]
[355829713,1741631402373,-150.0,8.838e-05,2]
[355829714,1741631402397,-550.0,8.839e-05,2]
[355829715,1741631402421,-550.0,8.89e-05,2]
[355829716,1741631402444,-94.56330385,8.916e-05,2]
[355829720,1741631412078,154.0,8.249e-05,3]
[355829726,1741631431468,-3288.19169615,8.916e-05,2]
[355829727,1741631431478,-9808.7105,8.916e-05,2]
[355829728,1741631431488,-326.66041494,8.916e-05,2]
[355829729,1741631431497,-156.94,8.944e-05,2]
[355829730,1741631431507,-500.0,9.041e-05,2]
[355829731,1741631431517,-156.94,9.05e-05,2]
[355829732,1741631431528,-150.99,9.05e-05,2]
[355829733,1741631431537,-326.66041492,9.07e-05,2]
[355829734,1741631431546,-299.99,9.07e-05,2]
[355829735,1741631431556,-2531.52,9.07e-05,2]
[355829736,1741631431566,-150.0,9.124e-05,2]
[355829737,1741631431578,-239.9517,9.125e-05,2]
[355829738,1741631431588,-475.6274,9.125e-05,2]
[355829739,1741631431598,-5630.43544242,9.125e-05,2]
[355829740,1741631431749,-235.21205758,9.125e-05,2]
[355829741,1741631431759,-793.4903,9.125e-05,2]
[355829742,1741631431769,-500.0,9.125e-05,2]
[355829743,1741631431779,-2500.0,9.125e-05,2]
[355829744,1741631431789,-156.94,9.156e-05,2]
[355829745,1741631431800,-151.34232874,9.203e-05,2]
[355829746,1741631431809,-2301.68706161,9.205e-05,2]
[355829747,1741631431884,-6325.31293839,9.205e-05,2]
[355829748,1741631431892,-9504.88706161,9.224e-05,2]
[355829749,1741631431941,-320.6,9.224e-05,2]
[355829750,1741631432044,-17239.45026049,9.224e-05,2]
[355829751,1741631432055,-12193.91109391,9.224e-05,2]
[355829752,1741631432066,-326.66041492,9.224e-05,2]
[355829753,1741631432078,-500.0,9.224e-05,2]
[355829754,1741631432087,-500.0,9.224e-05,2]
[355829755,1741631432096,-500.0,9.224e-05,2]
[355829756,1741631432106,-500.0,9.224e-05,2]
[355829757,1741631432115,-500.0,9.224e-05,2]
[355829758,1741631432125,-500.0,9.224e-05,2]
[355829759,1741631432136,-583.04714177,9.224e-05,2]
[355829760,1741631432145,-500.0,9.224e-05,2]
[355829761,1741631432155,-500.0,9.224e-05,2]
[355829762,1741631432165,-263.60635767,9.224e-05,2]
[355829763,1741631432176,-169.82009383,9.224e-05,2]
[355829764,1741631432186,-500.0,9.225e-05,2]
[355829765,1741631432196,-20261.60216315,9.225e-05,2]
[355829766,1741631432206,-175.37493742,9.225e-05,2]
[355829767,1741631432215,-186683.50696045,9.225e-05,2]
[355829768,1741631432226,-357603.02057639,9.225e-05,2]
[355829836,1741631437586,250.0,8.754e-05,2]
[355829853,1741631437777,-30035.5504714,9.225e-05,2]
[355829855,1741631437788,-1130.14390321,9.225e-05,2]
[355829861,1741631437836,-3097.96170744,9.225e-05,2]
[355829863,1741631437847,-6224.572055,9.225e-05,2]
[355829865,1741631437858,-9547.37304,9.225e-05,2]
[355829867,1741631437869,-11440.77293608,9.225e-05,2]
[355829869,1741631437880,-786.08,9.225e-05,2]
[355829871,1741631437891,-955.0,9.225e-05,2]
[355829876,1741631437927,-1093.70933003,9.225e-05,2]
[355829878,1741631437938,-5318.69278443,9.225e-05,2]
[355829884,1741631437991,-2835.07721257,9.225e-05,2]
[355830035,1741631439561,-612.70381277,9.225e-05,2]
[355830038,1741631439572,-283.84400501,9.225e-05,2]
[355830040,1741631439585,-8834.2,9.225e-05,2]
[355830080,1741631439962,-11899.7756058,9.225e-05,2]
[355830085,1741631440014,-2907485.67980303,9.225e-05,2]
[355830090,1741631440053,-239266.95577015,9.225e-05,2]
[355830094,1741631440089,-13637.80108307,9.225e-05,2]
[355830097,1741631440101,-5310.0205999,9.225e-05,2]
[355830099,1741631440115,-1984.85783924,9.225e-05,2]
[355830104,1741631440153,-501.99549603,9.225e-05,2]
[355830107,1741631440218,-600.60126997,9.225e-05,2]
[355830270,1741631442653,-890.58,9.225e-05,2]
[355830271,1741631442665,-573.56774056,9.225e-05,2]
[355830272,1741631442676,-96708.81201571,9.225e-05,2]
[355830273,1741631442783,-7842.93184605,9.225e-05,2]
[355830274,1741631442795,-1714.29778689,9.225e-05,2]
[355830275,1741631442836,-3957.9,9.225e-05,2]
[355830287,1741631444263,-994.49440999,9.225e-05,2]
[355830288,1741631444275,-438.60309297,9.225e-05,2]
[355830291,1741631445630,-476.87996005,9.125e-05,2]
[355830292,1741631445642,-2023.12003995,9.125e-05,2]
[355830293,1741631445652,-83471.63677953,9.225e-05,2]
[355830294,1741631445665,-50753.23038771,9.225e-05,2]
[355830302,1741631445906,-7163.22570689,9.225e-05,2]
[355830303,1741631445918,-329999.99999972,9.225e-05,2]
[355830304,1741631445968,-442.12776747,9.225e-05,2]
[355830305,1741631445999,-420980.95612997,9.225e-05,2]
[355830306,1741631446011,-974706.09705699,9.225e-05,2]
[355830307,1741631471073,500.0,8.4e-05,3]
[355830308,1741631473048,1100.0,8.5e-05,3]
[355830309,1741631475528,1600.0,8.6e-05,3]
[355830310,1741631477310,2200.0,8.7e-05,3]
[355830311,1741631480319,2700.0,8.8e-05,3]
[355830312,1741631491735,154.01,8.74e-05,2]
[355830313,1741631492038,154.01,8.775e-05,2]
[355830318,1741631686387,893.12619976,8e-05,2]
[355830319,1741631699392,5.0,9.562e-05,7]
[355830320,1741631707150,154.0,8e-05,3]
[355830321,1741631863430,165.11,8.219e-05,2]
[355830322,1741632092803,160.65,8.409e-05,2]
[355830323,1741632098140,1623.52,8.219e-05,2]
[355830324,1741632262643,2000.0,8.154e-05,2]
[355830325,1741632390751,1000.0,8.219e-05,2]
[355830326,1741632415228,823.07,8.219e-05,2]
[355830327,1741632478518,1269.03,8.145e-05,2]
[355830328,1741632539901,1231.7,8.138e-05,2]
[355830337,1741632556876,160.09,8.138e-05,2]
[355830338,1741632557076,160.09,8.26e-05,2]
[355830339,1741632557320,160.09,8.382e-05,2]
[355830340,1741632557622,160.09,8.504e-05,2]
[355830341,1741632557787,160.09,8.626e-05,2]
[355830355,1741632631986,-154.01,8.81e-05,2]
[355830356,1741632631995,-150.0,8.828e-05,2]
[355830357,1741632632005,-154.01,8.845e-05,2]
[355830358,1741632632014,-154.01,8.88e-05,2]
[355830359,1741632632024,-154.01,8.915e-05,2]
[355830360,1741632632034,-22384.93866503,8.929e-05,2]
[355830361,1741632632043,-154.01,8.95e-05,2]
[355830362,1741632632053,-150.0,8.959e-05,2]
[355830363,1741632632062,-500.0,8.959e-05,2]
[355830364,1741632632071,-1000.0,8.977e-05,2]
[355830365,1741632632080,-154.01,8.985e-05,2]
[355830366,1741632632090,-550.0,9e-05,2]
[355830367,1741632632099,-310.28580465,9.015e-05,2]
[355830369,1741632632109,-154.01,9.02e-05,2]
[355830371,1741632632118,-154.01,9.055e-05,2]
[355830373,1741632632127,-2129.16962296,9.073e-05,2]
[355830375,1741632632136,-154.01,9.09e-05,2]
[355830377,1741632632146,-417.0,9.096e-05,2]
[355830379,1741632632155,-160.65,9.103e-05,2]
[355830381,1741632632165,-1805.5511,9.105e-05,2]
[355830382,1741632632174,-509.7188,9.105e-05,2]
[355830383,1741632632185,-150.0,9.114e-05,2]
[355830384,1741632632194,-65125.61190239,9.115e-05,2]
[355830385,1741632632203,-150.0,9.12e-05,2]
[355830386,1741632632212,-150.0,9.123e-05,2]
[355830387,1741632632222,-150.0,9.124e-05,2]
[355830388,1741632632231,-154.01,9.125e-05,2]
[355830389,1741632632240,-2164.3084,9.125e-05,2]
[355830390,1741632632250,-65502.66570497,9.125e-05,2]
[355830392,1741632632263,-778.82933618,9.125e-05,2]
[355830394,1741632632274,-5994.93005885,9.125e-05,2]
[355830396,1741632632283,-1969.5374,9.125e-05,2]
[355830398,1741632632292,-2517.4522,9.125e-05,2]
[355830400,1741632632301,-2500.0,9.125e-05,2]
[355830402,1741632632313,-150.0,9.127e-05,2]
[355830404,1741632632323,-150.0,9.129e-05,2]
[355830406,1741632632333,-150.0,9.131e-05,2]
[355830408,1741632632343,-150.0,9.131e-05,2]
[355830410,1741632632352,-150.0,9.132e-05,2]
[355830411,1741632632363,-150.0,9.134e-05,2]
[355830413,1741632632372,-150.0,9.139e-05,2]
[355830415,1741632632381,-150.0,9.142e-05,2]
[355830417,1741632632391,-1036.86592898,9.142e-05,2]
[355830419,1741632632402,-150.0,9.143e-05,2]
[355830421,1741632632412,-150.0,9.146e-05,2]
[355830423,1741632632423,-1231.7,9.155e-05,2]
[355830426,1741632632433,-150.0,9.156e-05,2]
[355830428,1741632632443,-150.0,9.158e-05,2]
[355830429,1741632632452,-150.0,9.158e-05,2]
[355830432,1741632632462,-154.01,9.16e-05,2]
[355830434,1741632632471,-150.0,9.162e-05,2]
[355830435,1741632632481,-300.0,9.165e-05,2]
[355830437,1741632632490,-150.0,9.168e-05,2]
[355830439,1741632632500,-150.0,9.171e-05,2]
[355830441,1741632632509,-150.0,9.174e-05,2]
[355830442,1741632632518,-150.0,9.175e-05,2]
[355830445,1741632632528,-1000.0,9.176e-05,2]
[355830447,1741632632538,-150.0,9.18e-05,2]
[355830448,1741632632547,-150.0,9.18e-05,2]
[355830450,1741632632557,-150.0,9.187e-05,2]
[355830452,1741632632567,-150.0,9.193e-05,2]
[355830454,1741632632576,-154.01,9.195e-05,2]
[355830456,1741632632586,-150.0,9.201e-05,2]
[355830458,1741632632595,-150.14083934,9.203e-05,2]
[355830462,1741632632605,-160.3062228,9.203e-05,2]
[355830463,1741632632936,-363.59097397,9.203e-05,2]
[355830464,1741632632946,-160.3410286,9.203e-05,2]
[355830465,1741632632956,-155.08390182,9.203e-05,2]
[355830466,1741632632965,-160.91113657,9.203e-05,2]
[355830467,1741632632975,-25936.71539807,9.205e-05,2]
[355830468,1741632633064,-1587.31817691,9.205e-05,2]
[355830469,1741632633108,-1036.92088886,9.205e-05,2]
[355830470,1741632633120,-330.15855907,9.205e-05,2]
[355830471,1741632633230,-51564.88697709,9.205e-05,2]
[355830472,1741632633241,-150.0,9.207e-05,2]
[355830473,1741632633251,-1000.0,9.207e-05,2]
[355830474,1741632633261,-319.90399824,9.208e-05,2]
[355830475,1741632633272,-150.0,9.213e-05,2]
[355830476,1741632633283,-150.0,9.213e-05,2]
[355830477,1741632633293,-150.0,9.217e-05,2]
[355830478,1741632633306,-150.0,9.219e-05,2]
[355830479,1741632633317,-150.0,9.22e-05,2]
[355830480,1741632633331,-184.52445037,9.224e-05,2]
[355830481,1741632633342,-1547.92,9.225e-05,2]
[355830482,1741632633351,-150.80459688,9.225e-05,2]
[355830483,1741632633363,-2305.0,9.225e-05,2]
[355830484,1741632633375,-245.52491238,9.225e-05,2]
[355830485,1741632633384,-61966.38231746,9.225e-05,2]
[355830486,1741632633394,-217162.77327597,9.225e-05,2]
[355830487,1741632633408,-1267.1695585,9.225e-05,2]
[355830488,1741632633433,-1029.29698763,9.225e-05,2]
[355830489,1741632633445,-6815.34,9.225e-05,2]
[355830490,1741632633457,-278119.99953063,9.225e-05,2]
[355830491,1741632633469,-31740.66461689,9.225e-05,2]
[355830492,1741632633502,-651.99618988,9.225e-05,2]
[355830493,1741632633527,-712.02367317,9.225e-05,2]
[355830494,1741632633539,-1838.12732136,9.225e-05,2]
[355830495,1741632633550,-1997.21734795,9.225e-05,2]
[355830525,1741632637943,-363.27597194,9.225e-05,2]
[355830526,1741632637956,-1711.72402806,9.225e-05,2]
[355830528,1741632637966,-493.37363656,9.225e-05,2]
[355830529,1741632637977,-929.79891723,9.225e-05,2]
[355830530,1741632638018,-514.56616423,9.225e-05,2]
[355830532,1741632638068,-1527.69999999,9.225e-05,2]
[355830533,1741632639711,-2361.0,9.225e-05,2]
[355830534,1741632639826,-215.88449036,9.225e-05,2]
[355830535,1741632639882,-928.7249985,9.225e-05,2]
[355830536,1741632639894,-299.79056144,9.225e-05,2]
[355830537,1741632639906,-1223.25882463,9.225e-05,2]
[355830538,1741632640026,-491.47098,9.225e-05,2]
[355830539,1741632640062,-310000.0,9.225e-05,2]
[355830540,1741632640079,-286.25007107,9.225e-05,2]
[355830541,1741632640090,-1680.0,9.225e-05,2]
[355830542,1741632640166,-3002955.95430303,9.225e-05,2]
[355830551,1741632642578,278.728676,8.219e-05,2]
[355830563,1741632642899,-11203.86218076,9.225e-05,2]
[355830569,1741632644606,-785.43937906,9.225e-05,2]
[355830570,1741632644631,-1273.47303876,9.225e-05,2]
[355830571,1741632644643,-294.97132972,9.225e-05,2]
[355830572,1741632644655,-6841.57888411,9.225e-05,2]
[355830573,1741632644681,-156595.78184049,9.225e-05,2]
[355830574,1741632644692,-594131.43016646,9.225e-05,2]
[355830575,1741632644703,-8669.17792681,9.225e-05,2]
[355830578,1741632645961,-197405.93325671,9.225e-05,2]
[355830582,1741632646224,-158025.54341625,9.225e-05,2]
[355830583,1741632646235,-10264.80041351,9.225e-05,2]
[355830584,1741632646247,-693.20000004,9.225e-05,2]
[355830585,1741632646270,-131552.11481053,9.225e-05,2]
[355830587,1741632654836,5733.879117,8.219e-05,2]
[355830588,1741632655122,5733.879117,8.219e-05,2]
[355830589,1741632655579,5733.879117,8.219e-05,2]
[355830592,1741632671712,8545.214521,8.219e-05,2]
[355830593,1741632672212,8545.214521,8.219e-05,2]
[355830594,1741632672352,8545.214521,8.219e-05,2]
[355830595,1741632680709,212.341364,8.219e-05,2]
[355830596,1741632680887,212.341364,8.219e-05,2]
[355830597,1741632681057,212.341364,8.219e-05,2]
[355830598,1741632685956,237.001072,8.219e-05,2]
[355830599,1741632686260,237.001072,8.219e-05,2]
[355830600,1741632686814,237.001072,8.219e-05,2]
[355830606,1741632735028,245.6061732,0.0002,120]
[355830607,1741632740554,250.0,8.366e-05,2]
[355830608,1741632851844,165.768372,8.219e-05,2]
[355830609,1741632858546,154.229655,8.219e-05,2]
[355830610,1741632864659,172.302209,8.219e-05,2]
[355830611,1741633082619,-1234.79091479,0.000164,30]
[355830612,1741633082647,-1311.11,0.00016493,30]
[355830613,1741633082672,-1649.5412204,0.0001688,30]
[355830614,1741633082709,-500.0,0.0002,30]
[355830615,1741633082740,-1311.11,0.00020971,30]
[355830616,1741633082766,-181.58755561,0.00020999,30]
[355830617,1741633082796,-500.0,0.00021,30]
[355830618,1741633082824,-152.0,0.0002195,30]
[355830619,1741633082850,-500.0,0.00022,30]
[355830620,1741633082878,-152.0,0.00022179,31]
[355830621,1741633082903,-152.0,0.00022409,32]
[355830622,1741633082927,-152.0,0.00022639,33]
[355830623,1741633082954,-900.0,0.00023111,30]
[355830624,1741633082980,-900.0,0.00023111,30]
[355830625,1741633083005,-900.0,0.00023111,30]
[355830626,1741633083037,-900.0,0.00023111,30]
[355830627,1741633083064,-900.0,0.00023111,30]
[355830628,1741633083090,-900.0,0.00023111,30]
[355830629,1741633083116,-900.0,0.00023111,30]
[355830630,1741633083142,-900.0,0.00023111,30]
[355830631,1741633083169,-900.0,0.00023111,30]
[355830632,1741633083197,-900.0,0.00023111,30]
[355830633,1741633083225,-900.0,0.00023111,30]
[355830634,1741633083251,-900.0,0.00023111,30]
[355830635,1741633083283,-900.0,0.00023111,30]
[355830636,1741633083311,-500.0,0.00023111,30]
[355830637,1741633083342,-849.90738341,0.00023111,30]
[355830638,1741633083370,-1767.95358852,0.00023111,30]
[355830639,1741633083398,-500.0,0.00023111,30]
[355830640,1741633083426,-500.0,0.00023111,30]
[355830641,1741633083452,-500.0,0.00023111,30]
[355830642,1741633083482,-500.0,0.00023111,30]
[355830643,1741633083511,-500.0,0.00023111,30]
[355830644,1741633083541,-500.0,0.00023111,30]
[355830645,1741633083570,-500.0,0.00023111,30]
[355830646,1741633083597,-500.0,0.00023111,30]
[355830647,1741633083623,-700.0,0.00023111,30]
[355830648,1741633083651,-500.0,0.00023111,30]
[355830649,1741633083678,-700.0,0.00023111,30]
[355830650,1741633083704,-500.0,0.00023111,30]
[355830651,1741633083729,-500.0,0.00023111,30]
[355830652,1741633083756,-700.0,0.00023111,30]
[355830653,1741633083786,-700.0,0.00023111,30]
[355830654,1741633083812,-700.0,0.00023111,30]
[355830655,1741633083837,-700.0,0.00023111,30]
[355830656,1741633083863,-700.0,0.00023111,30]
[355830657,1741633083890,-500.0,0.00023111,30]
[355830658,1741633083916,-500.0,0.00023111,30]
[355830659,1741633083942,-700.0,0.00023111,30]
[355830660,1741633083969,-700.0,0.00023111,30]
[355830661,1741633083994,-700.0,0.00023111,30]
[355830662,1741633084020,-700.0,0.00023111,30]
[355830663,1741633084049,-700.0,0.00023111,30]
[355830664,1741633084074,-700.0,0.00023111,30]
[355830665,1741633084099,-500.0,0.00023111,30]
[355830666,1741633084125,-500.0,0.00023111,30]
[355830667,1741633084150,-500.0,0.00023111,30]
[355830668,1741633084175,-500.0,0.00023111,30]
[355830669,1741633084200,-500.0,0.00023111,30]
[355830670,1741633084224,-981.4047026,0.00023111,30]
[355830671,1741633084249,-500.0,0.00023111,30]
[355830672,1741633084274,-500.0,0.00023111,30]
[355830673,1741633084304,-500.0,0.00023111,30]
[355830674,1741633084331,-500.70429319,0.00023111,30]
[355830675,1741633084357,-500.0,0.00023111,30]
[355830676,1741633084382,-500.0,0.00023111,30]
[355830677,1741633084407,-500.0,0.00023111,30]
[355830678,1741633084431,-500.0,0.00023111,30]
[355830679,1741633084459,-500.0,0.00023111,30]
[355830680,1741633084745,-500.0,0.00023111,30]
[355830681,1741633084772,-500.0,0.00023111,30]
[355830682,1741633084800,-500.0,0.00023111,30]
[355830683,1741633084825,-500.0,0.00023111,30]
[355830684,1741633084849,-500.0,0.00023111,30]
[355830685,1741633084872,-500.0,0.00023111,30]
[355830686,1741633084897,-500.0,0.00023111,30]
[355830687,1741633084923,-500.0,0.00023111,30]
[355830688,1741633084947,-500.0,0.00023111,30]
[355830689,1741633084973,-500.0,0.00023111,30]
[355830690,1741633084996,-500.0,0.00023111,30]
[355830691,1741633085020,-500.0,0.00023111,30]
[355830692,1741633085045,-500.0,0.00023111,30]
[355830693,1741633085069,-500.0,0.00023111,30]
[355830694,1741633085095,-500.0,0.00023111,30]
[355830695,1741633085120,-500.0,0.000235,30]
[355830696,1741633085152,-542.14924397,0.00025,30]
[355830697,1741633085180,-1000.0,0.00025,30]
[355830698,1741633085207,-1311.11,0.0002545,30]
[355830699,1741633085233,-893.12619988,0.0002551,120]
[355830700,1741633085259,-160.94858168,0.00026,60]
[355830701,1741633085287,-5000.0,0.000269,120]
[355830702,1741633085312,-1405.1967397,0.00027,70]
[355830703,1741633085340,-263.34819612,0.00027,30]
[355830704,1741633085364,-250.0,0.00027,30]
[355830705,1741633085390,-700.0,0.00027,120]
[355830706,1741633085415,-1000.0,0.00027,120]
[355830707,1741633085440,-1069.80708834,0.00027,30]
[355830708,1741633085469,-162.36,0.00027,120]
[355830709,1741633085494,-500.0,0.00027,30]
[355830710,1741633085523,-150.0,0.00027108,120]
[355830711,1741633085561,-500.0,0.00027397,120]
[355830712,1741633085588,-500.0,0.00027397,120]
[355830713,1741633085613,-505.20123468,0.00027397,120]
[355830714,1741633085639,-500.0,0.00027397,120]
[355830715,1741633085664,-500.0,0.00027397,120]
[355830716,1741633085689,-500.0,0.00027397,120]
[355830717,1741633085714,-500.0,0.00027397,120]
[355830718,1741633085744,-500.0,0.00027397,120]
[355830719,1741633085772,-500.0,0.00027397,120]
[355830720,1741633085806,-500.0,0.00027397,120]
[355830721,1741633085833,-541.66797876,0.00027397,120]
[355830722,1741633085860,-500.0,0.00027397,120]
[355830723,1741633085886,-500.0,0.00027397,120]
[355830724,1741633085911,-500.0,0.00027397,120]
[355830725,1741633085936,-500.0,0.00027397,120]
[355830726,1741633085960,-500.0,0.00027397,120]
[355830727,1741633085985,-500.0,0.00027397,120]
[355830728,1741633086011,-500.0,0.00027397,120]
[355830729,1741633086040,-500.0,0.00027397,120]
[355830730,1741633086066,-500.0,0.00027397,120]
[355830731,1741633086094,-508.55589314,0.00027397,120]
[355830732,1741633086121,-500.0,0.00027397,120]
[355830733,1741633086148,-500.0,0.00027397,120]
[355830734,1741633086175,-507.59881831,0.00027397,120]
[355830735,1741633086201,-673.66,0.00027397,120]
[355830736,1741633086227,-673.66,0.00027397,120]
[355830737,1741633086254,-673.66,0.00027397,120]
[355830738,1741633086282,-673.66,0.00027397,120]
[355830739,1741633086307,-673.66,0.00027397,120]
[355830740,1741633086334,-673.66,0.00027397,120]
[355830741,1741633086362,-673.66,0.00027397,120]
[355830742,1741633086388,-673.66,0.00027397,120]
[355830743,1741633086416,-673.66,0.00027397,120]
[355830744,1741633086442,-673.66,0.00027397,120]
[355830745,1741633086469,-673.66,0.00027397,120]
[355830746,1741633086497,-673.66,0.00027397,120]
[355830747,1741633086525,-673.66,0.00027397,120]
[355830748,1741633086556,-673.66,0.00027397,120]
[355830749,1741633086583,-673.66,0.00027397,120]
[355830750,1741633086611,-673.66,0.00027397,120]
[355830751,1741633086638,-673.66,0.00027397,120]
[355830752,1741633086666,-673.66,0.00027397,120]
[355830753,1741633086691,-673.66,0.00027397,120]
[355830754,1741633086718,-673.66,0.00027397,120]
[355830755,1741633086743,-673.66,0.00027397,120]
[355830756,1741633086769,-673.66,0.00027397,120]
[355830757,1741633086797,-673.66,0.00027397,120]
[355830758,1741633086824,-673.7016753,0.00027397,120]
[355830759,1741633086849,-500.0,0.00027397,120]
[355830760,1741633086876,-500.0,0.00027397,120]
[355830761,1741633086902,-500.0,0.00027397,120]
[355830762,1741633086928,-500.0,0.00027397,120]
[355830763,1741633086954,-500.0,0.00027397,120]
[355830764,1741633086981,-500.0,0.00027397,120]
[355830765,1741633087008,-500.0,0.00027397,120]
[355830766,1741633087040,-500.0,0.00027397,120]
[355830767,1741633087067,-500.0,0.00027397,120]
[355830768,1741633087095,-500.0,0.00027397,120]
[355830769,1741633087121,-500.0,0.00027397,120]
[355830770,1741633087148,-251.16381602,0.00027397,120]
[355830771,1741633087175,-4146.34,0.00027397,120]
[355830772,1741633087203,-4146.34,0.00027397,120]
[355830773,1741633087231,-4146.34,0.00027397,120]
[355830774,1741633087262,-4146.34,0.00027397,120]
[355830775,1741633087290,-4146.34,0.00027397,120]
[355830776,1741633087316,-4146.34,0.00027397,120]
[355830777,1741633087343,-4146.34,0.00027397,120]
[355830778,1741633087371,-4146.34,0.00027397,120]
[355830779,1741633087397,-4146.34,0.00027397,120]
[355830780,1741633087423,-4146.34,0.00027397,120]